Workbook

Sheet Upper_Lower_Proper
A1: Employee name | B1: Upper | C1: Lower | D1: Proper
A2: Ram Gupta | B2: =UPPER(A2) -> RAM GUPTA | C2: =LOWER(A2) -> ram gupta | D2: =PROPER(A2) -> Ram Gupta
A3: ROHIT SHARMA | B3: =UPPER(A3) -> ROHIT SHARMA | C3: =LOWER(A3) -> rohit sharma | D3: =PROPER(A3) -> Rohit Sharma
A4: Geeta BASRA | B4: GEETA BASRA | C4: geeta basra | D4: Geeta Basra
A5: MOHIT gulati | B5: MOHIT GULATI | C5: mohit gulati | D5: Mohit Gulati
A6: prateek kumar | B6: PRATEEK KUMAR | C6: prateek kumar | D6: Prateek Kumar

Sheet Left_Right_Mid
A2: Vendor Name | B2: Code | C2: Vendor Code (Left) | D2: Vendor Code (Right)
A3: ABC Enterprices | B3: 001 | C3: =CONCATENATE(LEFT(A3,3),B3) -> ABC001 | D3: =CONCATENATE(B3,RIGHT(A3,3)) -> 001ces
A4: Lakshmi and sons | B4: 002 | C4: =CONCATENATE(LEFT(A4,3),B4) -> Lak002 | D4: =CONCATENATE(B4,RIGHT(A4,3)) -> 002ons
A5: Vaibhavi and Co | B5: 003 | C5: Vai003 | D5: 003 Co
A6: Prateek and associates | B6: 004 | C6: Pra004 | D6: 004tes
A8: Loan account No | B8: Type Of Loan (Mid)
A9: BK1008600000013 | B9: =MID(A9,6,2) -> 86
A10: BK1008600000059 | B10: =MID(A10,6,2) -> 86
A11: BK1008600000077 | B11: 86
A12: BK1008600000086 | B12: 86
A13: BK1008600000095 | B13: 86
A14: BK1008600000109 | B14: 86
A15: BK1008600000118 | B15: 86
A16: BK1008600000127 | B16: 86
A17: BK1008600000136 | B17: 86
A18: BK1008600000145 | B18: 86
A19: BK1008600000172 | B19: 86
A20: BK1008600000206 | B20: 86
A21: BK1008600000215 | B21: 86
A22: BK1008800000204 | B22: 88
A23: BK1008800000240 | B23: 88
A24: BK1008800001681 | B24: 88
A25: BK1008800002033 | B25: 88
A26: BK1008800002495 | B26: 88
A27: BK1008800002848 | B27: 88
A28: BK1008800002875 | B28: 88

Sheet Subtotal
A1: Name of Employee | B1: Kind of Service | C1: Date of rendering of service | D1: Charges
A2: A | B2: ITR | C2: 2020-12-31 | D2: 1400
A3: B | B3: GST | C3: 2019-10-10 | D3: 1000
A4: C | B4: consultancy | C4: 2019-09-08 | D4: 2300
A5: D | B5: ROC | C5: 2019-08-17 | D5: 3000
A6: E | B6: TDS | C6: 2019-10-10 | D6: 700
A7: F | B7: ITR | C7: 2019-09-05 | D7: 4400
A8: G | B8: GST | C8: 2019-10-03 | D8: 2300
A9: H | B9: consultancy | C9: 2020-06-10 | D9: 3800
A10: I | B10: ROC | C10: 2020-10-05 | D10: 500
A11: J | B11: TDS | C11: 2020-02-12 | D11: 1700
A12: K | B12: ITR | C12: 2020-07-20 | D12: 700
A13: L | B13: consultancy | C13: 2019-09-10 | D13: 4500
A14: M | B14: consultancy | C14: 2020-08-07 | D14: 900
A15: N | B15: ROC | C15: 2020-10-10 | D15: 2400
A16: O | B16: TDS | C16: 2020-01-11 | D16: 4100
A17: P | B17: ITR | C17: 2021-02-28 | D17: 2200
A18: Q | B18: GST | C18: 2019-05-01 | D18: 900
A19: R | B19: consultancy | C19: 2020-09-13 | D19: 3400
A20: S | B20: ROC | C20: 2020-11-05 | D20: 4000
A21: T | B21: TDS | C21: 2020-01-06 | D21: 4200
A22: U | B22: ITR | C22: 2019-07-19 | D22: 9100
A23: V | B23: GST | C23: 2020-02-28 | D23: 1700
A24: W | B24: consultancy | C24: 2020-02-11 | D24: 8600
A25: X | B25: ROC | C25: 2020-01-31 | D25: 9100
A26: Y | B26: TDS | C26: 2020-11-07 | D26: 7200
A27: Z | B27: ITR | C27: 2019-08-08 | D27: 5700
D28: =SUM(D2:D27) -> 89800

Sheet Subtotal_1
A1: Name of Employee | B1: Kind of Service | C1: Date of rendering of service | D1: Charges | E1: Invoice Value
A2: C | B2: consultancy | C2: 2019-09-08 | D2: 2300 | E2: =D2+D2*18% -> 2714
A3: L | B3: consultancy | C3: 2019-09-10 | D3: 4500 | E3: =D3+D3*18% -> 5310
A4: M | B4: consultancy | C4: 2020-08-07 | D4: 900 | E4: 1062
A5: R | B5: consultancy | C5: 2020-09-13 | D5: 3400 | E5: 4012
A6: W | B6: consultancy | C6: 2020-02-11 | D6: 8600 | E6: 10148
A7: H | B7: consultancy | C7: 2020-06-10 | D7: 3800 | E7: 4484
A8: B | B8: GST | C8: 2019-10-10 | D8: 1000 | E8: 1180
A9: G | B9: GST | C9: 2019-10-03 | D9: 2300 | E9: 2714
A10: Q | B10: GST | C10: 2019-05-01 | D10: 900 | E10: 1062
A11: V | B11: GST | C11: 2020-02-28 | D11: 1700 | E11: 2006
A12: A | B12: ITR | C12: 2020-12-31 | D12: 1400 | E12: 1652
A13: F | B13: ITR | C13: 2019-09-05 | D13: 4400 | E13: 5192
A14: K | B14: ITR | C14: 2020-07-20 | D14: 700 | E14: 826
A15: P | B15: ITR | C15: 2021-02-28 | D15: 2200 | E15: 2596
A16: U | B16: ITR | C16: 2019-07-19 | D16: 9100 | E16: 10738
A17: Z | B17: ITR | C17: 2019-08-08 | D17: 5700 | E17: 6726
A18: D | B18: ROC | C18: 2019-08-17 | D18: 3000 | E18: 3540
A19: I | B19: ROC | C19: 2020-10-05 | D19: 500 | E19: 590
A20: N | B20: ROC | C20: 2020-10-10 | D20: 2400 | E20: 2832
A21: S | B21: ROC | C21: 2020-11-05 | D21: 4000 | E21: 4720
A22: X | B22: ROC | C22: 2020-01-31 | D22: 9100 | E22: 10738
A23: E | B23: TDS | C23: 2019-10-10 | D23: 700 | E23: 826
A24: J | B24: TDS | C24: 2020-02-12 | D24: 1700 | E24: 2006
A25: O | B25: TDS | C25: 2020-01-11 | D25: 4100 | E25: 4838
A26: T | B26: TDS | C26: 2020-01-06 | D26: 4200 | E26: 4956
A27: Y | B27: TDS | C27: 2020-11-07 | D27: 7200 | E27: 8496

Sheet Round_RoundUp_RoundDown
A1: Numbers | B1: Round | C1: RoundUp | D1: RoundDown
A2: 9969.666667 | B2: =ROUND(A2,0) -> 9970 | C2: =ROUNDUP(A2,-2) -> 10000 | D2: =ROUNDDOWN(A2,-3) -> 9000
A3: 13574.45 | B3: =ROUND(A3,0) -> 13574
A4: 12532.6789 | B4: =ROUND(A4,1) -> 12532.7
A5: 3044.666667 | B5: =ROUND(A5,-1) -> 3040
A6: 7888.333333 | B6: =ROUND(A6,1) -> 7888.3 | D6: -2
A7: 7819.56 | B7: =ROUND(A7,-1) -> 7820
A8: 2416.333333 | B8: -3
A9: 17301.66667 | B9: -2
A10: 30794.33333 | B10: -1 | D10: 2
A11: 31255
A12: 27427
A13: 32444.33333 | B13: 1
A14: 29374.66667 | B14: 2 | C14: -1
A15: 30640.66667 | B15: 3
A16: 6072.666667 | B16: 4
A17: 17612.33333 | B17: 0 | C17: =ROUNDUP(A17,-1) -> 17620 | D17: =ROUNDDOWN(A17,0) -> 17612

Sheet Rand_RandBetween
A1: Rand | B1: RandBetween
A2: 0.0606226059 | B2: 249 | C2: =B2+A2 -> 249.0606226 | D2: =RANDBETWEEN(1000,10000)+RAND() -> 2152.013782
A3: 0.7881867109 | B3: 935 | C3: =B3+A3 -> 935.7881867 | D3: =RANDBETWEEN(1000,10000)+RAND() -> 8556.24242
A4: 0.7420303906 | B4: 307 | C4: 307.7420304 | D4: 7988.739724
A5: 0.2215951479 | B5: 786 | C5: 786.2215951 | D5: 7862.656262
A6: 0.1653513431 | B6: 975 | C6: 975.1653513 | D6: 4761.14524
A7: 0.08331037801 | B7: 579 | C7: 579.0833104 | D7: 3735.750511
A8: 0.7232730556 | B8: 283 | C8: 283.7232731 | D8: 9053.630252
A9: 0.4523813174 | B9: 337 | C9: 337.4523813 | D9: 2920.653176
A10: 0.1226138039 | B10: 371 | C10: 371.1226138 | D10: 8634.835687
A11: 0.5424062295 | B11: 319 | C11: 319.5424062 | D11: 3985.438677
A12: 0.8569390648 | B12: 103 | C12: 103.8569391 | D12: 7467.479566
A13: 0.8690166029 | B13: 542 | C13: 542.8690166 | D13: 7629.591709
A14: 0.6058915515 | B14: 942 | C14: 942.6058916 | D14: 4683.195947
A15: 0.2810423939 | B15: 751 | C15: 751.2810424 | D15: 4611.97243
A16: 0.360089983 | B16: 445 | C16: 445.36009 | D16: 6314.331262

Sheet Sorting
A1: Name of Employee | B1: Kind of Service | C1: Date of rendering of service | D1: Charges
A2: Q | B2: GST | C2: 2019-05-01 | D2: 900
A3: B | B3: GST | C3: 2019-05-01 | D3: 1000
A4: D | B4: ROC | C4: 2019-05-01 | D4: 3000
A5: U | B5: ITR | C5: 2019-07-19 | D5: 9100
A6: Z | B6: ITR | C6: 2019-08-08 | D6: 5700
A7: F | B7: ITR | C7: 2019-09-05 | D7: 4400
A8: C | B8: consultancy | C8: 2019-09-08 | D8: 2300
A9: L | B9: consultancy | C9: 2019-09-10 | D9: 4500
A10: G | B10: GST | C10: 2019-10-03 | D10: 2300
A11: E | B11: TDS | C11: 2019-10-10 | D11: 700
A12: T | B12: TDS | C12: 2020-01-06 | D12: 4200
A13: O | B13: TDS | C13: 2020-01-11 | D13: 4100
A14: X | B14: ROC | C14: 2020-01-31 | D14: 9100
A15: W | B15: consultancy | C15: 2020-02-11 | D15: 8600
A16: J | B16: TDS | C16: 2020-02-12 | D16: 1700
A17: V | B17: GST | C17: 2020-02-28 | D17: 1700
A18: H | B18: consultancy | C18: 2020-06-10 | D18: 3800
A19: K | B19: ITR | C19: 2020-07-20 | D19: 700
A20: M | B20: consultancy | C20: 2020-08-07 | D20: 900
A21: R | B21: consultancy | C21: 2020-09-13 | D21: 3400
A22: I | B22: ROC | C22: 2020-10-05 | D22: 500
A23: N | B23: ROC | C23: 2020-10-10 | D23: 2400
A24: S | B24: ROC | C24: 2020-11-05 | D24: 4000
A25: Y | B25: TDS | C25: 2020-11-07 | D25: 7200
A26: A | B26: ITR | C26: 2020-12-31 | D26: 1400
A27: P | B27: ITR | C27: 2021-02-28 | D27: 2200

Sheet Filters
A1: Name of Employee | B1: Kind of Service | C1: Date of rendering of service | D1: Charges | F1: Shortcuts | G1: Ctrl+Shift+L
A2: A | B2: ITR | C2: 2020-12-31 | D2: 1400 | G2: Alt+A+T
A3: B | B3: GST | C3: 2019-10-10 | D3: 1000 | G3: Alt+A+C
A4: C | B4: consultancy | C4: 2019-09-08 | D4: 2300 | G4: Alt + ;
A5: D | B5: ROC | C5: 2019-08-17 | D5: 3000
A6: E | B6: TDS | C6: 2019-10-10 | D6: 700
A7: F | B7: ITR | C7: 2019-09-05 | D7: 4400
A8: G | B8: GST | C8: 2019-10-03 | D8: 2300
A9: H | B9: consultancy | C9: 2020-06-10 | D9: 3800
A10: I | B10: ROC | C10: 2020-10-05 | D10: 500
A11: J | B11: TDS | C11: 2020-02-12 | D11: 1700
A12: K | B12: ITR | C12: 2020-07-20 | D12: 700
A13: L | B13: consultancy | C13: 2019-09-10 | D13: 4500
A14: M | B14: consultancy | C14: 2020-08-07 | D14: 900
A15: N | B15: ROC | C15: 2020-10-10 | D15: 2400
A16: O | B16: TDS | C16: 2020-01-11 | D16: 4100
A17: P | B17: ITR | C17: 2021-02-28 | D17: 2200
A18: Q | B18: GST | C18: 2019-05-01 | D18: 900
A19: R | B19: consultancy | C19: 2020-09-13 | D19: 3400
A20: S | B20: ROC | C20: 2020-11-05 | D20: 4000
A21: T | B21: TDS | C21: 2020-01-06 | D21: 4200
A22: U | B22: ITR | C22: 2019-07-19 | D22: 9100
A23: V | B23: GST | C23: 2020-02-28 | D23: 1700
A24: W | B24: consultancy | C24: 2020-02-11 | D24: 8600
A25: X | B25: ROC | C25: 2020-01-31 | D25: 9100
A26: Y | B26: TDS | C26: 2020-11-07 | D26: 7200
A27: Z | B27: ITR | C27: 2019-08-08 | D27: 5700

Sheet Filter Paste
A1: Name of Employee | B1: Kind of Service | C1: Date of rendering of service | D1: Charges
A2: B | B2: GST | C2: 2019-10-10 | D2: 1000
A3: C | B3: consultancy | C3: 2019-09-08 | D3: 2300
A4: G | B4: GST | C4: 2019-10-03 | D4: 2300
A5: H | B5: consultancy | C5: 2020-06-10 | D5: 3800
A6: L | B6: consultancy | C6: 2019-09-10 | D6: 4500
A7: M | B7: consultancy | C7: 2020-08-07 | D7: 900
A8: Q | B8: GST | C8: 2019-05-01 | D8: 900
A9: R | B9: consultancy | C9: 2020-09-13 | D9: 3400
A10: V | B10: GST | C10: 2020-02-28 | D10: 1700
A11: W | B11: consultancy | C11: 2020-02-11 | D11: 8600

Sheet Advance Filters 1
A1: Name of Employee | B1: Kind of Service | C1: Date of rendering of service | D1: Charges | F1: Kind of Service
A2: A | B2: ITR | C2: 2020-12-31 | D2: 1400 | F2: GST
A3: B | B3: GST | C3: 2019-10-10 | D3: 1000
A4: C | B4: consultancy | C4: 2019-09-08 | D4: 2300
A5: D | B5: ROC | C5: 2019-08-17 | D5: 3000
A6: E | B6: TDS | C6: 2019-10-10 | D6: 700
A7: F | B7: ITR | C7: 2019-09-05 | D7: 4400
A8: G | B8: GST | C8: 2019-10-03 | D8: 2300
A9: H | B9: consultancy | C9: 2020-06-10 | D9: 3800 | F9: Name of Employee | G9: Kind of Service | H9: Date of rendering of service | I9: Charges
A10: I | B10: ROC | C10: 2020-10-05 | D10: 500 | F10: B | G10: GST | H10: 2019-10-10 | I10: 1000
A11: J | B11: TDS | C11: 2020-02-12 | D11: 1700 | F11: G | G11: GST | H11: 2019-10-03 | I11: 2300
A12: K | B12: ITR | C12: 2020-07-20 | D12: 700 | F12: Q | G12: GST | H12: 2019-05-01 | I12: 900
A13: L | B13: consultancy | C13: 2019-09-10 | D13: 4500 | F13: V | G13: GST | H13: 2020-02-28 | I13: 1700
A14: M | B14: consultancy | C14: 2020-08-07 | D14: 900
A15: N | B15: ROC | C15: 2020-10-10 | D15: 2400
A16: O | B16: TDS | C16: 2020-01-11 | D16: 4100
A17: P | B17: ITR | C17: 2021-02-28 | D17: 2200
A18: Q | B18: GST | C18: 2019-05-01 | D18: 900
A19: R | B19: consultancy | C19: 2020-09-13 | D19: 3400
A20: S | B20: ROC | C20: 2020-11-05 | D20: 4000
A21: T | B21: TDS | C21: 2020-01-06 | D21: 4200
A22: U | B22: ITR | C22: 2019-07-19 | D22: 9100
A23: V | B23: GST | C23: 2020-02-28 | D23: 1700
A24: W | B24: consultancy | C24: 2020-02-11 | D24: 8600
A25: X | B25: ROC | C25: 2020-01-31 | D25: 9100
A26: Y | B26: TDS | C26: 2020-11-07 | D26: 7200
A27: Z | B27: ITR | C27: 2019-08-08 | D27: 5700

Sheet Advance Filters 2
A1: Name of Employee | B1: Kind of Service | C1: Date of rendering of service | D1: Charges | F1: Kind of Service | G1: Charges
A2: A | B2: ITR | C2: 2020-12-31 | D2: 1000 | F2: ITR | G2: 1000
A3: B | B3: GST | C3: 2019-10-10 | D3: 1000
A4: C | B4: consultancy | C4: 2019-09-08 | D4: 2300
A5: D | B5: ROC | C5: 2019-08-17 | D5: 3000
A6: E | B6: TDS | C6: 2019-10-10 | D6: 700
A7: F | B7: ITR | C7: 2019-09-05 | D7: 4400
A8: G | B8: GST | C8: 2019-10-03 | D8: 2300
A9: H | B9: consultancy | C9: 2020-06-10 | D9: 3800
A10: I | B10: ROC | C10: 2020-10-05 | D10: 500 | F10: Name of Employee | G10: Kind of Service | H10: Date of rendering of service | I10: Charges
A11: J | B11: TDS | C11: 2020-02-12 | D11: 1700 | F11: A | G11: ITR | H11: 2020-12-31 | I11: 1000
A12: K | B12: ITR | C12: 2020-07-20 | D12: 1000 | F12: K | G12: ITR | H12: 2020-07-20 | I12: 1000
A13: L | B13: consultancy | C13: 2019-09-10 | D13: 4500
A14: M | B14: consultancy | C14: 2020-08-07 | D14: 900
A15: N | B15: ROC | C15: 2020-10-10 | D15: 2400
A16: O | B16: TDS | C16: 2020-01-11 | D16: 4100
A17: P | B17: ITR | C17: 2021-02-28 | D17: 2200
A18: Q | B18: GST | C18: 2019-05-01 | D18: 900
A19: R | B19: consultancy | C19: 2020-09-13 | D19: 3400
A20: S | B20: ROC | C20: 2020-11-05 | D20: 4000
A21: T | B21: TDS | C21: 2020-01-06 | D21: 4200
A22: U | B22: ITR | C22: 2019-07-19 | D22: 9100
A23: V | B23: GST | C23: 2020-02-28 | D23: 1700
A24: W | B24: consultancy | C24: 2020-02-11 | D24: 8600
A25: X | B25: ROC | C25: 2020-01-31 | D25: 9100
A26: Y | B26: TDS | C26: 2020-11-07 | D26: 7200
A27: Z | B27: ITR | C27: 2019-08-08 | D27: 5700

Sheet Advance Filters 3
A1: Name of Employee | B1: Kind of Service | C1: Date of rendering of service | D1: Charges | F1: Charges
A2: A | B2: ITR | C2: 2020-12-31 | D2: 1400 | F2: <1000
A3: B | B3: GST | C3: 2019-10-10 | D3: 1000
A4: C | B4: consultancy | C4: 2019-09-08 | D4: 2300
A5: D | B5: ROC | C5: 2019-08-17 | D5: 3000
A6: E | B6: TDS | C6: 2019-10-10 | D6: 700
A7: F | B7: ITR | C7: 2019-09-05 | D7: 4400
A8: G | B8: GST | C8: 2019-10-03 | D8: 2300
A9: H | B9: consultancy | C9: 2020-06-10 | D9: 3800
A10: I | B10: ROC | C10: 2020-10-05 | D10: 500 | F10: Name of Employee | G10: Kind of Service | H10: Date of rendering of service | I10: Charges
A11: J | B11: TDS | C11: 2020-02-12 | D11: 1700 | F11: E | G11: TDS | H11: 2019-10-10 | I11: 700
A12: K | B12: ITR | C12: 2020-07-20 | D12: 700 | F12: I | G12: ROC | H12: 2020-10-05 | I12: 500
A13: L | B13: consultancy | C13: 2019-09-10 | D13: 4500 | F13: K | G13: ITR | H13: 2020-07-20 | I13: 700
A14: M | B14: consultancy | C14: 2020-08-07 | D14: 900 | F14: M | G14: consultancy | H14: 2020-08-07 | I14: 900
A15: N | B15: ROC | C15: 2020-10-10 | D15: 2400 | F15: Q | G15: GST | H15: 2019-05-01 | I15: 900
A16: O | B16: TDS | C16: 2020-01-11 | D16: 4100
A17: P | B17: ITR | C17: 2021-02-28 | D17: 2200
A18: Q | B18: GST | C18: 2019-05-01 | D18: 900
A19: R | B19: consultancy | C19: 2020-09-13 | D19: 3400
A20: S | B20: ROC | C20: 2020-11-05 | D20: 4000
A21: T | B21: TDS | C21: 2020-01-06 | D21: 4200
A22: U | B22: ITR | C22: 2019-07-19 | D22: 9100
A23: V | B23: GST | C23: 2020-02-28 | D23: 1700
A24: W | B24: consultancy | C24: 2020-02-11 | D24: 8600
A25: X | B25: ROC | C25: 2020-01-31 | D25: 9100
A26: Y | B26: TDS | C26: 2020-11-07 | D26: 7200
A27: Z | B27: ITR | C27: 2019-08-08 | D27: 5700

Sheet Advance Filters 4
A1: Name of Employee | B1: Kind of Service | C1: Date of rendering of service | D1: Charges | F1: Date of rendering of service
A2: A | B2: ITR | C2: 2020-12-31 | D2: 1400 | F2: >01-01-2020
A3: B | B3: GST | C3: 2019-10-10 | D3: 1000
A4: C | B4: consultancy | C4: 2019-09-08 | D4: 2300
A5: D | B5: ROC | C5: 2019-08-17 | D5: 3000
A6: E | B6: TDS | C6: 2019-10-10 | D6: 700
A7: F | B7: ITR | C7: 2019-09-05 | D7: 4400
A8: G | B8: GST | C8: 2019-10-03 | D8: 2300
A9: H | B9: consultancy | C9: 2020-06-10 | D9: 3800
A10: I | B10: ROC | C10: 2020-10-05 | D10: 500
A11: J | B11: TDS | C11: 2020-02-12 | D11: 1700
A12: K | B12: ITR | C12: 2020-07-20 | D12: 700
A13: L | B13: consultancy | C13: 2019-09-10 | D13: 4500
A14: M | B14: consultancy | C14: 2020-08-07 | D14: 900 | F14: Name of Employee | G14: Kind of Service | H14: Date of rendering of service | I14: Charges
A15: N | B15: ROC | C15: 2020-10-10 | D15: 2400 | F15: A | G15: ITR | H15: 2020-12-31 | I15: 1400
A16: O | B16: TDS | C16: 2020-01-11 | D16: 4100 | F16: H | G16: consultancy | H16: 2020-06-10 | I16: 3800
A17: P | B17: ITR | C17: 2021-02-28 | D17: 2200 | F17: I | G17: ROC | H17: 2020-10-05 | I17: 500
A18: Q | B18: GST | C18: 2019-05-01 | D18: 900 | F18: J | G18: TDS | H18: 2020-02-12 | I18: 1700
A19: R | B19: consultancy | C19: 2020-09-13 | D19: 3400 | F19: K | G19: ITR | H19: 2020-07-20 | I19: 700
A20: S | B20: ROC | C20: 2020-11-05 | D20: 4000 | F20: M | G20: consultancy | H20: 2020-08-07 | I20: 900
A21: T | B21: TDS | C21: 2020-01-06 | D21: 4200 | F21: N | G21: ROC | H21: 2020-10-10 | I21: 2400
A22: U | B22: ITR | C22: 2019-07-19 | D22: 9100 | F22: O | G22: TDS | H22: 2020-01-11 | I22: 4100
A23: V | B23: GST | C23: 2020-02-28 | D23: 1700 | F23: P | G23: ITR | H23: 2021-02-28 | I23: 2200
A24: W | B24: consultancy | C24: 2020-02-11 | D24: 8600 | F24: R | G24: consultancy | H24: 2020-09-13 | I24: 3400
A25: X | B25: ROC | C25: 2020-01-31 | D25: 9100 | F25: S | G25: ROC | H25: 2020-11-05 | I25: 4000
A26: Y | B26: TDS | C26: 2020-11-07 | D26: 7200 | F26: T | G26: TDS | H26: 2020-01-06 | I26: 4200
A27: Z | B27: ITR | C27: 2019-08-08 | D27: 5700 | F27: V | G27: GST | H27: 2020-02-28 | I27: 1700
F28: W | G28: consultancy | H28: 2020-02-11 | I28: 8600
F29: X | G29: ROC | H29: 2020-01-31 | I29: 9100
F30: Y | G30: TDS | H30: 2020-11-07 | I30: 7200

Sheet Advance Filters 5
A1: Name of Employee | B1: Kind of Service | C1: Date of rendering of service | D1: Charges | F1: Kind of Service
A2: A | B2: ITR_Amir | C2: 2020-12-31 | D2: 1000 | F2: *soham*
A3: B | B3: GST_soham | C3: 2019-10-10 | D3: 1000
A4: C | B4: consultancy_Ram | C4: 2019-09-08 | D4: 2300
A5: D | B5: ROC_Mohit | C5: 2019-08-17 | D5: 3000
A6: E | B6: TDS_Rohit | C6: 2019-10-10 | D6: 700
A7: F | B7: ITR_Shyam | C7: 2019-09-05 | D7: 4400
A8: G | B8: GST_soham | C8: 2019-10-03 | D8: 2300 | F8: Name of Employee | G8: Charges
A9: H | B9: consultancy_Amir | C9: 2020-06-10 | D9: 3800 | F9: A | G9: 1000
A10: I | B10: ROC_Rohit | C10: 2020-10-05 | D10: 500 | F10: H | G10: 3800
A11: J | B11: TDS_Mayank | C11: 2020-02-12 | D11: 1700 | F11: N | G11: 2400
A12: K | B12: ITR_Lalit | C12: 2020-07-20 | D12: 1000 | F12: Y | G12: 7200
A13: L | B13: consultancy_Rohan | C13: 2019-09-10 | D13: 4500
A14: M | B14: consultancy_Mayank | C14: 2020-08-07 | D14: 900
A15: N | B15: ROC_Amir | C15: 2020-10-10 | D15: 2400
A16: O | B16: TDS_Rohit | C16: 2020-01-11 | D16: 4100
A17: P | B17: ITR_Soham | C17: 2021-02-28 | D17: 2200
A18: Q | B18: GST_Kabir | C18: 2019-05-01 | D18: 900
A19: R | B19: consultancy_Shobhit | C19: 2020-09-13 | D19: 3400
A20: S | B20: ROC_Praveen | C20: 2020-11-05 | D20: 4000
A21: T | B21: TDS_Rana | C21: 2020-01-06 | D21: 4200
A22: U | B22: ITR_Rohit | C22: 2019-07-19 | D22: 9100
A23: V | B23: GST_Mayank | C23: 2020-02-28 | D23: 1700
A24: W | B24: consultancy_Kabir | C24: 2020-02-11 | D24: 8600
A25: X | B25: ROC_Praveen | C25: 2020-01-31 | D25: 9100
A26: Y | B26: TDS_Amir | C26: 2020-11-07 | D26: 7200
A27: Z | B27: ITR_Lalit | C27: 2019-08-08 | D27: 5700

Sheet Advance Filter 6_activeSH
B2: Name of Employee | C2: Kind of Service | D2: Date of rendering of service | E2: Charges
B3: B | C3: GST_soham | D3: 2019-10-10 | E3: 1000
B4: G | C4: GST_soham | D4: 2019-10-03 | E4: 2300
B5: P | C5: ITR_Soham | D5: 2021-02-28 | E5: 2200

Sheet Dynamic Advance Filter
A1: Name of Employee | B1: Kind of Service | C1: Date of rendering of service | D1: Charges | F1: Name of Employee | G1: Kind of Service | H1: Date of rendering of service | I1: Charges
A2: A | B2: ITR | C2: 2020-12-31 | D2: 1400 | F2: D | G2: ROC
A3: B | B3: GST | C3: 2019-10-10 | D3: 1000
A4: C | B4: consultancy | C4: 2019-09-08 | D4: 2300
A5: D | B5: ROC | C5: 2019-08-17 | D5: 3000
A6: E | B6: TDS | C6: 2019-10-10 | D6: 700
A7: A | B7: ITR | C7: 2019-09-05 | D7: 4400
A8: B | B8: GST | C8: 2019-10-03 | D8: 2300
A9: C | B9: consultancy | C9: 2020-06-10 | D9: 3800
A10: D | B10: ROC | C10: 2020-10-05 | D10: 500
A11: E | B11: TDS | C11: 2020-02-12 | D11: 1700 | F11: Name of Employee | G11: Kind of Service | H11: Date of rendering of service | I11: Charges
A12: A | B12: ITR | C12: 2020-07-20 | D12: 700 | F12: B | G12: ITR | H12: 2020-02-28 | I12: 1700
A13: B | B13: consultancy | C13: 2019-09-10 | D13: 4500
A14: C | B14: consultancy | C14: 2020-08-07 | D14: 900
A15: D | B15: ROC | C15: 2020-10-10 | D15: 2400
A16: E | B16: TDS | C16: 2020-01-11 | D16: 4100
A17: A | B17: ITR | C17: 2021-02-28 | D17: 2200
A18: B | B18: GST | C18: 2019-05-01 | D18: 900
A19: C | B19: consultancy | C19: 2020-09-13 | D19: 3400
A20: D | B20: ROC | C20: 2020-11-05 | D20: 4000
A21: E | B21: TDS | C21: 2020-01-06 | D21: 4200
A22: A | B22: ITR | C22: 2019-07-19 | D22: 9100
A23: B | B23: ITR | C23: 2020-02-28 | D23: 1700
A24: C | B24: consultancy | C24: 2020-02-11 | D24: 8600
A25: D | B25: ROC | C25: 2020-01-31 | D25: 9100
A26: E | B26: TDS | C26: 2020-11-07 | D26: 7200
A27: A | B27: ITR | C27: 2019-08-08 | D27: 5700
A32: ROC | B32: A
A33: GST | B33: B
A34: TDS | B34: C
A35: ITR | B35: D
A36: consultancy | B36: E

Sheet Sheet1
A1: Name of Employee | B1: Kind of Service | C1: Date of rendering of service | D1: Charges | F1: Name of Employee | G1: Kind of Service | H1: Date of rendering of service | I1: Charges
A2: A | B2: ITR | C2: 2020-12-31 | D2: 1400 | F2: C | G2: consultancy
A3: B | B3: GST | C3: 2019-10-10 | D3: 1000
A4: C | B4: consultancy | C4: 2019-09-08 | D4: 2300
A5: D | B5: ROC | C5: 2019-08-17 | D5: 3000
A6: E | B6: TDS | C6: 2019-10-10 | D6: 700
A7: A | B7: ITR | C7: 2019-09-05 | D7: 4400
A8: B | B8: GST | C8: 2019-10-03 | D8: 2300
A9: C | B9: consultancy | C9: 2020-06-10 | D9: 3800
A10: D | B10: ROC | C10: 2020-10-05 | D10: 500
A11: E | B11: TDS | C11: 2020-02-12 | D11: 1700 | F11: Name of Employee | G11: Kind of Service | H11: Date of rendering of service | I11: Charges
A12: A | B12: ITR | C12: 2020-07-20 | D12: 700 | F12: C | G12: consultancy | H12: 2019-09-08 | I12: 2300
A13: B | B13: consultancy | C13: 2019-09-10 | D13: 4500 | F13: C | G13: consultancy | H13: 2020-06-10 | I13: 3800
A14: C | B14: consultancy | C14: 2020-08-07 | D14: 900 | F14: C | G14: consultancy | H14: 2020-08-07 | I14: 900
A15: D | B15: ROC | C15: 2020-10-10 | D15: 2400 | F15: C | G15: consultancy | H15: 2020-09-13 | I15: 3400
A16: E | B16: TDS | C16: 2020-01-11 | D16: 4100 | F16: C | G16: consultancy | H16: 2020-02-11 | I16: 8600
A17: A | B17: ITR | C17: 2021-02-28 | D17: 2200
A18: B | B18: GST | C18: 2019-05-01 | D18: 900
A19: C | B19: consultancy | C19: 2020-09-13 | D19: 3400
A20: D | B20: ROC | C20: 2020-11-05 | D20: 4000
A21: E | B21: TDS | C21: 2020-01-06 | D21: 4200
A22: A | B22: ITR | C22: 2019-07-19 | D22: 9100
A23: B | B23: ITR | C23: 2020-02-28 | D23: 1700
A24: C | B24: consultancy | C24: 2020-02-11 | D24: 8600
A25: D | B25: ROC | C25: 2020-01-31 | D25: 9100
A26: E | B26: TDS | C26: 2020-11-07 | D26: 7200
A27: A | B27: ITR | C27: 2019-08-08 | D27: 5700
A39: ROC | B39: A
A40: GST | B40: B
A41: TDS | B41: C
A42: ITR | B42: D
A43: consultancy | B43: E
